[Event "Titled Tuesday Blitz November 30 2021"]
[White "Awatramani, Janak"]
[Black "Borsuk, Konstantin"]
[WhiteFideId "2608359"]
[BlackFideId "14113406"]
[WhiteElo "2821"]
[BlackElo "2406"]
[Result "0-1"]
[Round "06"]
[TimeControl "180+1"]
[Date "2021.11.30"]
[WhiteClock "0:00:01"]
[BlackClock "0:00:04"]

1. e4 {[%clk 0:02:59]}  e6 {[%clk 0:02:59]} 2. d4 {[%clk 0:02:59]}  d5 {[%clk 0:02:59]} 3. Nc3 {[%clk 0:03:00]}  Bb4 {[%clk 0:02:59]} 4. e5 {[%clk 0:02:38]}  b6 {[%clk 0:02:58]} 5. Qg4 {[%clk 0:02:33]}  Bf8 {[%clk 0:02:58]} 6. Nce2 {[%clk 0:02:27]}  Ba6 {[%clk 0:02:56]} 7. f4 {[%clk 0:02:22]}  h5 {[%clk 0:02:55]} 8. Qh3 {[%clk 0:02:11]}  c5 {[%clk 0:02:53]} 9. c3 {[%clk 0:02:10]}  Nc6 {[%clk 0:02:50]} 10. Nf3 {[%clk 0:02:10]}  Nge7 {[%clk 0:02:40]} 11. Be3 {[%clk 0:01:49]}  Rc8 {[%clk 0:02:29]} 12. Bf2 {[%clk 0:01:38]}  Nf5 {[%clk 0:02:08]} 13. g4 {[%clk 0:01:32]}  hxg4 {[%clk 0:02:07]} 14. Qxh8 {[%clk 0:01:30]}  gxf3 {[%clk 0:02:07]} 15. Ng3 {[%clk 0:01:30]}  Bxf1 {[%clk 0:02:07]} 16. Nxf5 {[%clk 0:01:04]}  Bg2 {[%clk 0:01:30]} 17. Nd6+ {[%clk 0:00:58]}  Kd7 {[%clk 0:01:24]} 18. Nxc8 {[%clk 0:00:58]}  Qxc8 {[%clk 0:01:09]} 19. O-O-O {[%clk 0:00:21]}  cxd4 {[%clk 0:01:08]} 20. Rhe1 {[%clk 0:00:17]}  dxc3 {[%clk 0:01:05]} 21. Qh5 {[%clk 0:00:13]}  g6 {[%clk 0:00:57]} 22. Qh7 {[%clk 0:00:12]}  Ke8 {[%clk 0:00:52]} 23. bxc3 {[%clk 0:00:09]}  Na5 {[%clk 0:00:39]} 24. Bd4 {[%clk 0:00:08]}  f2 {[%clk 0:00:33]} 25. Rf1 {[%clk 0:00:07]}  Ba3+ {[%clk 0:00:24]} 26. Kd2 {[%clk 0:00:05]}  Bxf1 {[%clk 0:00:16]} 27. Rxf1 {[%clk 0:00:05]}  Qc4 {[%clk 0:00:16]} 28. Qh8+ {[%clk 0:00:04]}  Kd7 {[%clk 0:00:16]} 29. Rxf2 {[%clk 0:00:02]}  Qxa2+ {[%clk 0:00:16]} 30. Ke3 {[%clk 0:00:02]}  Nc4+ {[%clk 0:00:16]} 31. Kf3 {[%clk 0:00:02]}  Qb1 {[%clk 0:00:16]} 32. Qa8 {[%clk 0:00:02]}  Qe4+ {[%clk 0:00:14]} 33. Kg3 {[%clk 0:00:01]}  Qd3+ {[%clk 0:00:15]} 34. Kg2 {[%clk 0:00:02]}  Ke7 {[%clk 0:00:10]} 35. Qxa7+ {[%clk 0:00:02]}  Kf8 {[%clk 0:00:10]} 36. Qb8+ {[%clk 0:00:02]}  Kg7 {[%clk 0:00:10]} 37. Qd8 {[%clk 0:00:03]}  Qd1 {[%clk 0:00:08]} 38. Qf6+ {[%clk 0:00:03]}  Kg8 {[%clk 0:00:08]} 39. Qd8+ {[%clk 0:00:03]}  Bf8 {[%clk 0:00:08]} 40. Qh4 {[%clk 0:00:04]}  Nd2 {[%clk 0:00:08]} 41. Qg3 {[%clk 0:00:04]}  Ne4 {[%clk 0:00:08]} 42. Qf3 {[%clk 0:00:04]}  Qb1 {[%clk 0:00:08]} 43. Re2 {[%clk 0:00:04]}  b5 {[%clk 0:00:07]} 44. h4 {[%clk 0:00:05]}  b4 {[%clk 0:00:07]} 45. cxb4 {[%clk 0:00:05]}  Qxb4 {[%clk 0:00:07]} 46. Bf2 {[%clk 0:00:05]}  Qe7 {[%clk 0:00:04]} 47. h5 {[%clk 0:00:05]}  Bh6 {[%clk 0:00:05]} 48. hxg6 {[%clk 0:00:05]}  fxg6 {[%clk 0:00:06]} 49. Qg4 {[%clk 0:00:05]}  Qf7 {[%clk 0:00:06]} 50. Rc2 {[%clk 0:00:05]}  Bxf4 {[%clk 0:00:06]} 51. Rc8+ {[%clk 0:00:06]}  Kg7 {[%clk 0:00:06]} 52. Qh3 {[%clk 0:00:05]}  Bh6 {[%clk 0:00:06]} 53. Bh4 {[%clk 0:00:04]}  g5 {[%clk 0:00:06]} 54. Bg3 {[%clk 0:00:03]}  Kg6 {[%clk 0:00:07]} 55. Qg4 {[%clk 0:00:03]}  Qf5 {[%clk 0:00:06]} 56. Qe2 {[%clk 0:00:02]}  g4 {[%clk 0:00:06]} 57. Rc6 {[%clk 0:00:02]}  Bg5 {[%clk 0:00:05]} 58. Qd3 {[%clk 0:00:01]}  Nxg3 {[%clk 0:00:04]} 0-1


[Site "https://www.chess.com"]

[Event "Titled Tuesday Blitz November 30 2021"]
[White "Bazeev, German"]
[Black "Gontcharov, Vladislav"]
[WhiteFideId "24119350"]
[BlackFideId "4123492"]
[WhiteElo "2462"]
[BlackElo "2503"]
[Result "1-0"]
[Round "06"]
[TimeControl "180+1"]
[Date "2021.11.30"]
[WhiteClock "0:00:36"]
[BlackClock "0:00:02"]

1. d4 {[%clk 0:03:00]}  Nf6 {[%clk 0:02:59]} 2. Nf3 {[%clk 0:02:59]}  g6 {[%clk 0:02:57]} 3. c4 {[%clk 0:02:59]}  Bg7 {[%clk 0:02:57]} 4. Nc3 {[%clk 0:03:00]}  O-O {[%clk 0:02:56]} 5. Bg5 {[%clk 0:02:59]}  c5 {[%clk 0:02:55]} 6. e3 {[%clk 0:02:59]}  h6 {[%clk 0:02:41]} 7. Bxf6 {[%clk 0:02:56]}  Bxf6 {[%clk 0:02:40]} 8. Ne4 {[%clk 0:02:56]}  Qb6 {[%clk 0:02:31]} 9. Nxf6+ {[%clk 0:02:50]}  Qxf6 {[%clk 0:02:30]} 10. Be2 {[%clk 0:02:49]}  Nc6 {[%clk 0:02:25]} 11. O-O {[%clk 0:02:44]}  cxd4 {[%clk 0:02:25]} 12. exd4 {[%clk 0:02:41]}  d6 {[%clk 0:02:25]} 13. h3 {[%clk 0:02:42]}  Bd7 {[%clk 0:02:24]} 14. Qd2 {[%clk 0:02:42]}  Kg7 {[%clk 0:02:14]} 15. Rfe1 {[%clk 0:02:42]}  g5 {[%clk 0:02:05]} 16. d5 {[%clk 0:02:37]}  Nb8 {[%clk 0:01:47]} 17. Nh2 {[%clk 0:02:27]}  Rc8 {[%clk 0:01:43]} 18. b3 {[%clk 0:02:21]}  Na6 {[%clk 0:01:14]} 19. Bg4 {[%clk 0:02:20]}  Rc7 {[%clk 0:01:14]} 20. Bxd7 {[%clk 0:02:18]}  Rxd7 {[%clk 0:01:14]} 21. Ng4 {[%clk 0:02:19]}  Qg6 {[%clk 0:01:08]} 22. Re2 {[%clk 0:02:10]}  h5 {[%clk 0:01:02]} 23. Ne3 {[%clk 0:02:05]}  h4 {[%clk 0:00:57]} 24. b4 {[%clk 0:01:57]}  Rf8 {[%clk 0:00:46]} 25. Rae1 {[%clk 0:01:55]}  f5 {[%clk 0:00:45]} 26. Nc2 {[%clk 0:01:52]}  Rf7 {[%clk 0:00:27]} 27. Nd4 {[%clk 0:01:46]}  Nc7 {[%clk 0:00:26]} 28. Ne6+ {[%clk 0:01:43]}  Kg8 {[%clk 0:00:26]} 29. Nxg5 {[%clk 0:01:41]}  Rg7 {[%clk 0:00:26]} 30. f4 {[%clk 0:01:41]}  Ne8 {[%clk 0:00:24]} 31. Re6 {[%clk 0:01:38]}  Nf6 {[%clk 0:00:24]} 32. Qf2 {[%clk 0:01:37]}  Qh5 {[%clk 0:00:23]} 33. Qxa7 {[%clk 0:01:36]}  Rxg5 {[%clk 0:00:16]} 34. fxg5 {[%clk 0:01:35]}  Qxg5 {[%clk 0:00:17]} 35. Qf2 {[%clk 0:01:29]}  Kf7 {[%clk 0:00:13]} 36. R6e3 {[%clk 0:01:19]}  Rc7 {[%clk 0:00:12]} 37. c5 {[%clk 0:01:12]}  Nxd5 {[%clk 0:00:11]} 38. Rf3 {[%clk 0:01:10]}  e6 {[%clk 0:00:09]} 39. cxd6 {[%clk 0:01:08]}  Rd7 {[%clk 0:00:10]} 40. Re5 {[%clk 0:01:01]}  Rxd6 {[%clk 0:00:09]} 41. Rexf5+ {[%clk 0:00:56]}  exf5 {[%clk 0:00:09]} 42. Rxf5+ {[%clk 0:00:57]}  Qxf5 {[%clk 0:00:09]} 43. Qxf5+ {[%clk 0:00:58]}  Nf6 {[%clk 0:00:09]} 44. Qf4 {[%clk 0:00:53]}  Re6 {[%clk 0:00:09]} 45. Qxh4 {[%clk 0:00:52]}  Re4 {[%clk 0:00:10]} 46. Qf2 {[%clk 0:00:42]}  Rxb4 {[%clk 0:00:10]} 47. Qc5 {[%clk 0:00:40]}  Rb1+ {[%clk 0:00:09]} 48. Kh2 {[%clk 0:00:41]}  Rb2 {[%clk 0:00:09]} 49. a4 {[%clk 0:00:40]}  Kg6 {[%clk 0:00:04]} 50. a5 {[%clk 0:00:40]}  Kf7 {[%clk 0:00:02]} 51. Qc3 {[%clk 0:00:36]} 1-0


[Site "https://www.chess.com"]

[Event "Titled Tuesday Blitz November 30 2021"]
[White "Deac, Bogdan-Daniel"]
[Black "Kosteniuk, Alexandra"]
[WhiteFideId "1226380"]
[BlackFideId "4128125"]
[WhiteElo "2605"]
[BlackElo "2521"]
[Result "1-0"]
[Round "06"]
[TimeControl "180+1"]
[Date "2021.11.30"]
[WhiteClock "0:00:15"]
[BlackClock "0:00:07"]

1. e4 {[%clk 0:03:00]}  c6 {[%clk 0:02:59]} 2. Nf3 {[%clk 0:03:00]}  d5 {[%clk 0:02:59]} 3. d3 {[%clk 0:03:01]}  dxe4 {[%clk 0:02:59]} 4. dxe4 {[%clk 0:03:02]}  Qxd1+ {[%clk 0:02:58]} 5. Kxd1 {[%clk 0:03:03]}  Nf6 {[%clk 0:02:57]} 6. Nfd2 {[%clk 0:03:03]}  g5 {[%clk 0:02:56]} 7. f3 {[%clk 0:03:03]}  h5 {[%clk 0:02:55]} 8. Nc4 {[%clk 0:03:02]}  Bh6 {[%clk 0:02:54]} 9. h4 {[%clk 0:02:53]}  g4 {[%clk 0:02:52]} 10. Bxh6 {[%clk 0:02:53]}  Rxh6 {[%clk 0:02:52]} 11. Nc3 {[%clk 0:02:54]}  Be6 {[%clk 0:02:49]} 12. Ne3 {[%clk 0:02:48]}  Nbd7 {[%clk 0:02:48]} 13. f4 {[%clk 0:02:41]}  Nc5 {[%clk 0:02:39]} 14. Bd3 {[%clk 0:02:41]}  O-O-O {[%clk 0:02:07]} 15. Ke2 {[%clk 0:02:39]}  Kc7 {[%clk 0:01:51]} 16. b4 {[%clk 0:02:35]}  Nxd3 {[%clk 0:01:40]} 17. cxd3 {[%clk 0:02:36]}  b6 {[%clk 0:01:32]} 18. a4 {[%clk 0:02:31]}  Bc8 {[%clk 0:01:28]} 19. a5 {[%clk 0:02:26]}  Rhh8 {[%clk 0:01:13]} 20. axb6+ {[%clk 0:01:48]}  axb6 {[%clk 0:01:14]} 21. Rhc1 {[%clk 0:01:49]}  Kb7 {[%clk 0:01:06]} 22. b5 {[%clk 0:01:04]}  Bd7 {[%clk 0:00:57]} 23. bxc6+ {[%clk 0:00:40]}  Bxc6 {[%clk 0:00:57]} 24. Nc4 {[%clk 0:00:41]}  Nd7 {[%clk 0:00:39]} 25. Rab1 {[%clk 0:00:36]}  Ra8 {[%clk 0:00:37]} 26. f5 {[%clk 0:00:29]}  Rhc8 {[%clk 0:00:30]} 27. f6 {[%clk 0:00:20]}  Re8 {[%clk 0:00:14]} 28. fxe7 {[%clk 0:00:19]}  Rxe7 {[%clk 0:00:14]} 29. Nd6+ {[%clk 0:00:20]}  Kb8 {[%clk 0:00:14]} 30. Nd5 {[%clk 0:00:15]}  Bxd5 {[%clk 0:00:07]} 31. Rc8+ {[%clk 0:00:14]}  Ka7 {[%clk 0:00:08]} 32. Ra1+ {[%clk 0:00:14]}  Ba2 {[%clk 0:00:07]} 33. Rxa2# {[%clk 0:00:15]} 1-0


[Site "https://www.chess.com"]

[Event "Titled Tuesday Blitz November 30 2021"]
[White "Gaehwiler, Gabriel"]
[Black "Gokerkan, Cem Kaan"]
[WhiteFideId "1314530"]
[BlackFideId "6336760"]
[WhiteElo "2320"]
[BlackElo "2382"]
[Result "1/2-1/2"]
[Round "06"]
[TimeControl "180+1"]
[Date "2021.11.30"]
[WhiteClock "0:00:18"]
[BlackClock "0:00:21"]

1. d4 {[%clk 0:03:00]}  Nf6 {[%clk 0:02:59]} 2. c4 {[%clk 0:02:59]}  g6 {[%clk 0:03:00]} 3. Nf3 {[%clk 0:03:00]}  Bg7 {[%clk 0:03:01]} 4. g3 {[%clk 0:03:00]}  O-O {[%clk 0:03:01]} 5. Bg2 {[%clk 0:03:00]}  d6 {[%clk 0:03:01]} 6. O-O {[%clk 0:03:01]}  Nbd7 {[%clk 0:03:02]} 7. Nc3 {[%clk 0:03:01]}  e5 {[%clk 0:03:02]} 8. e4 {[%clk 0:03:02]}  Re8 {[%clk 0:03:03]} 9. Re1 {[%clk 0:03:00]}  a6 {[%clk 0:03:02]} 10. dxe5 {[%clk 0:02:54]}  dxe5 {[%clk 0:03:02]} 11. b3 {[%clk 0:02:53]}  Qe7 {[%clk 0:03:00]} 12. Nd5 {[%clk 0:02:51]}  Nxd5 {[%clk 0:03:00]} 13. cxd5 {[%clk 0:02:52]}  Rd8 {[%clk 0:02:30]} 14. Qc2 {[%clk 0:02:49]}  Nf6 {[%clk 0:02:28]} 15. a4 {[%clk 0:02:45]}  Ne8 {[%clk 0:02:23]} 16. Ba3 {[%clk 0:02:45]}  Qf6 {[%clk 0:02:21]} 17. Nd2 {[%clk 0:02:42]}  Bd7 {[%clk 0:02:18]} 18. Nc4 {[%clk 0:02:40]}  h5 {[%clk 0:01:44]} 19. Bb2 {[%clk 0:02:34]}  Qe7 {[%clk 0:01:44]} 20. Ba3 {[%clk 0:02:31]}  Qf6 {[%clk 0:01:44]} 21. Bb2 {[%clk 0:02:31]}  Qe7 {[%clk 0:01:40]} 22. f4 {[%clk 0:02:29]}  exf4 {[%clk 0:01:36]} 23. Bxg7 {[%clk 0:02:26]}  Nxg7 {[%clk 0:01:35]} 24. gxf4 {[%clk 0:02:26]}  h4 {[%clk 0:01:33]} 25. Ne5 {[%clk 0:02:14]}  Nh5 {[%clk 0:01:29]} 26. Nd3 {[%clk 0:01:58]}  c6 {[%clk 0:01:26]} 27. Bf3 {[%clk 0:01:30]}  Nf6 {[%clk 0:01:26]} 28. Qc5 {[%clk 0:01:19]}  Qxc5+ {[%clk 0:01:14]} 29. Nxc5 {[%clk 0:01:20]}  cxd5 {[%clk 0:01:15]} 30. e5 {[%clk 0:01:06]}  Ne4 {[%clk 0:01:07]} 31. Nxe4 {[%clk 0:00:59]}  dxe4 {[%clk 0:01:08]} 32. Bxe4 {[%clk 0:01:00]}  Bc6 {[%clk 0:01:05]} 33. Bxc6 {[%clk 0:00:59]}  bxc6 {[%clk 0:01:06]} 34. Rad1 {[%clk 0:00:57]}  Rxd1 {[%clk 0:01:04]} 35. Rxd1 {[%clk 0:00:58]}  Rb8 {[%clk 0:01:05]} 36. Rd3 {[%clk 0:00:39]}  Rb4 {[%clk 0:01:05]} 37. Rc3 {[%clk 0:00:35]}  a5 {[%clk 0:00:59]} 38. Rxc6 {[%clk 0:00:24]}  Rxb3 {[%clk 0:00:56]} 39. e6 {[%clk 0:00:22]}  fxe6 {[%clk 0:00:46]} 40. Rxe6 {[%clk 0:00:23]}  Kf7 {[%clk 0:00:47]} 41. Re5 {[%clk 0:00:22]}  Rb1+ {[%clk 0:00:42]} 42. Kg2 {[%clk 0:00:22]}  Rb4 {[%clk 0:00:40]} 43. Rxa5 {[%clk 0:00:20]}  Rxf4 {[%clk 0:00:40]} 44. Ra8 {[%clk 0:00:18]}  g5 {[%clk 0:00:37]} 45. h3 {[%clk 0:00:17]}  Ke6 {[%clk 0:00:36]} 46. a5 {[%clk 0:00:17]}  Ra4 {[%clk 0:00:36]} 47. a6 {[%clk 0:00:17]}  Kf6 {[%clk 0:00:22]} 48. a7 {[%clk 0:00:17]}  Kg7 {[%clk 0:00:23]} 49. Kf3 {[%clk 0:00:16]}  Kh7 {[%clk 0:00:19]} 50. Kf2 {[%clk 0:00:17]}  Kg7 {[%clk 0:00:20]} 51. Kf3 {[%clk 0:00:17]}  Kh7 {[%clk 0:00:20]} 52. Kf2 {[%clk 0:00:17]}  Kg7 {[%clk 0:00:21]} 53. Kf3 {[%clk 0:00:18]} 1/2-1/2


[Site "https://www.chess.com"]

[Event "Titled Tuesday Blitz November 30 2021"]
[White "Goltsev, Dmitry"]
[Black "Abdrlauf, Elham"]
[WhiteFideId "24176710"]
[BlackFideId "1533533"]
[WhiteElo "2259"]
[BlackElo "2362"]
[Result "0-1"]
[Round "06"]
[TimeControl "180+1"]
[Date "2021.11.30"]
[WhiteClock "0:00:06"]
[BlackClock "0:00:08"]

1. e4 {[%clk 0:02:59]}  c6 {[%clk 0:02:58]} 2. d4 {[%clk 0:02:59]}  d5 {[%clk 0:02:59]} 3. Nc3 {[%clk 0:03:00]}  dxe4 {[%clk 0:03:00]} 4. Nxe4 {[%clk 0:03:00]}  Nf6 {[%clk 0:03:01]} 5. Nxf6+ {[%clk 0:02:59]}  exf6 {[%clk 0:03:02]} 6. c3 {[%clk 0:02:59]}  Bd6 {[%clk 0:03:02]} 7. Bd3 {[%clk 0:02:59]}  O-O {[%clk 0:03:03]} 8. Nf3 {[%clk 0:02:58]}  Re8+ {[%clk 0:03:04]} 9. Be3 {[%clk 0:02:58]}  Nd7 {[%clk 0:03:05]} 10. h3 {[%clk 0:02:57]}  Nf8 {[%clk 0:03:06]} 11. Qc2 {[%clk 0:02:57]}  Be6 {[%clk 0:03:06]} 12. b3 {[%clk 0:02:56]}  Qd7 {[%clk 0:03:00]} 13. Nd2 {[%clk 0:02:55]}  Ng6 {[%clk 0:02:59]} 14. Ne4 {[%clk 0:02:54]}  Bd5 {[%clk 0:02:14]} 15. Nxd6 {[%clk 0:02:51]}  Qxd6 {[%clk 0:02:15]} 16. O-O {[%clk 0:02:51]}  Nh4 {[%clk 0:01:37]} 17. Bxh7+ {[%clk 0:02:00]}  Kh8 {[%clk 0:01:35]} 18. Bf5 {[%clk 0:02:00]}  Bxg2 {[%clk 0:01:24]} 19. Rfe1 {[%clk 0:01:51]}  g6 {[%clk 0:01:10]} 20. Bg4 {[%clk 0:01:46]}  Bf3 {[%clk 0:00:57]} 21. Bxf3 {[%clk 0:01:38]}  Nxf3+ {[%clk 0:00:58]} 22. Kg2 {[%clk 0:01:39]}  Qd5 {[%clk 0:00:30]} 23. Kg3 {[%clk 0:01:37]}  Nxe1 {[%clk 0:00:27]} 24. Rxe1 {[%clk 0:01:38]}  Re6 {[%clk 0:00:21]} 25. c4 {[%clk 0:01:28]}  Qe4 {[%clk 0:00:20]} 26. Qxe4 {[%clk 0:01:27]}  Rxe4 {[%clk 0:00:21]} 27. d5 {[%clk 0:01:25]}  cxd5 {[%clk 0:00:22]} 28. cxd5 {[%clk 0:01:26]}  Rd8 {[%clk 0:00:21]} 29. Rd1 {[%clk 0:01:26]}  b6 {[%clk 0:00:20]} 30. Bf4 {[%clk 0:01:23]}  Rd7 {[%clk 0:00:17]} 31. Bb8 {[%clk 0:01:21]}  Re8 {[%clk 0:00:17]} 32. Bf4 {[%clk 0:01:19]}  g5 {[%clk 0:00:17]} 33. Bc1 {[%clk 0:01:13]}  Red8 {[%clk 0:00:17]} 34. Bb2 {[%clk 0:00:29]}  Kg7 {[%clk 0:00:16]} 35. f4 {[%clk 0:00:28]}  Rxd5 {[%clk 0:00:16]} 36. Re1 {[%clk 0:00:28]}  Rd2 {[%clk 0:00:14]} 37. Bc1 {[%clk 0:00:27]}  R8d3+ {[%clk 0:00:14]} 38. Kg4 {[%clk 0:00:26]}  Rg2+ {[%clk 0:00:14]} 39. Kf5 {[%clk 0:00:24]}  Rxh3 {[%clk 0:00:08]} 40. Re7 {[%clk 0:00:21]}  Rf3 {[%clk 0:00:07]} 41. Rxa7 {[%clk 0:00:20]}  Rc2 {[%clk 0:00:06]} 42. Kg4 {[%clk 0:00:18]}  Rf1 {[%clk 0:00:06]} 43. Be3 {[%clk 0:00:17]}  Rg2+ {[%clk 0:00:06]} 44. Kf5 {[%clk 0:00:15]}  Re2 {[%clk 0:00:05]} 45. Re7 {[%clk 0:00:13]}  Rxf4+ {[%clk 0:00:05]} 46. Bxf4 {[%clk 0:00:13]}  Rxe7 {[%clk 0:00:06]} 47. Bd6 {[%clk 0:00:13]}  Re2 {[%clk 0:00:05]} 48. a3 {[%clk 0:00:11]}  Re3 {[%clk 0:00:05]} 49. b4 {[%clk 0:00:06]}  b5 {[%clk 0:00:05]} 50. Bc5 {[%clk 0:00:04]}  Rxa3 {[%clk 0:00:05]} 51. Bd4 {[%clk 0:00:04]}  Rf3+ {[%clk 0:00:05]} 52. Ke4 {[%clk 0:00:03]}  Rf4+ {[%clk 0:00:06]} 53. Kd5 {[%clk 0:00:03]}  Rxd4+ {[%clk 0:00:07]} 54. Kxd4 {[%clk 0:00:04]}  g4 {[%clk 0:00:07]} 55. Ke4 {[%clk 0:00:05]}  f5+ {[%clk 0:00:07]} 56. Kf4 {[%clk 0:00:06]}  Kf6 {[%clk 0:00:08]} 57. Kg3 {[%clk 0:00:06]}  Kg5 {[%clk 0:00:08]} 0-1


[Site "https://www.chess.com"]

[Event "Titled Tuesday Blitz November 30 2021"]
[White "Golubka, Petro"]
[Black "Tabatabaei, M. Amin"]
[WhiteFideId "14114224"]
[BlackFideId "12521213"]
[WhiteElo "2392"]
[BlackElo "2555"]
[Result "0-1"]
[Round "06"]
[TimeControl "180+1"]
[Date "2021.11.30"]
[WhiteClock "0:01:05"]
[BlackClock "0:01:00"]

1. e4 {[%clk 0:02:54]}  c6 {[%clk 0:03:00]} 2. d4 {[%clk 0:02:53]}  d5 {[%clk 0:03:01]} 3. e5 {[%clk 0:02:53]}  Bf5 {[%clk 0:03:00]} 4. g4 {[%clk 0:02:52]}  Be4 {[%clk 0:02:59]} 5. f3 {[%clk 0:02:52]}  Bg6 {[%clk 0:02:59]} 6. e6 {[%clk 0:02:53]}  fxe6 {[%clk 0:02:59]} 7. h4 {[%clk 0:02:45]}  Qd6 {[%clk 0:02:58]} 8. Ne2 {[%clk 0:02:43]}  e5 {[%clk 0:02:56]} 9. h5 {[%clk 0:02:42]}  Bf7 {[%clk 0:02:56]} 10. Nbc3 {[%clk 0:02:41]}  Nd7 {[%clk 0:02:55]} 11. Bg2 {[%clk 0:02:30]}  Ngf6 {[%clk 0:02:53]} 12. O-O {[%clk 0:02:16]}  O-O-O {[%clk 0:02:52]} 13. dxe5 {[%clk 0:02:11]}  Nxe5 {[%clk 0:02:53]} 14. Bf4 {[%clk 0:02:10]}  Qc5+ {[%clk 0:02:54]} 15. Kh1 {[%clk 0:02:05]}  Nc4 {[%clk 0:02:54]} 16. b4 {[%clk 0:02:01]}  Qxb4 {[%clk 0:02:53]} 17. Rb1 {[%clk 0:02:01]}  Qc5 {[%clk 0:02:53]} 18. Qc1 {[%clk 0:01:59]}  e5 {[%clk 0:02:52]} 19. Bg3 {[%clk 0:01:59]}  Qe3 {[%clk 0:02:46]} 20. Qe1 {[%clk 0:01:57]}  d4 {[%clk 0:01:48]} 21. Nd1 {[%clk 0:01:45]}  Qd2 {[%clk 0:01:45]} 22. Qf2 {[%clk 0:01:44]}  Bc5 {[%clk 0:01:36]} 23. Nb2 {[%clk 0:01:42]}  Ne3 {[%clk 0:01:32]} 24. Nd3 {[%clk 0:01:40]}  Bd6 {[%clk 0:01:31]} 25. Nxe5 {[%clk 0:01:32]}  Bd5 {[%clk 0:01:28]} 26. g5 {[%clk 0:01:21]}  Nxh5 {[%clk 0:01:13]} 27. Bh3+ {[%clk 0:01:20]}  Kc7 {[%clk 0:01:11]} 28. Bh2 {[%clk 0:01:19]}  Rhe8 {[%clk 0:01:07]} 29. Nd3 {[%clk 0:01:12]}  Nxf1 {[%clk 0:01:03]} 30. Bxd6+ {[%clk 0:01:07]}  Rxd6 {[%clk 0:01:04]} 31. Bxf1 {[%clk 0:01:06]}  Rxe2 {[%clk 0:01:00]} 32. Bxe2 {[%clk 0:01:05]}  Qxe2 {[%clk 0:01:00]} 0-1


[Site "https://www.chess.com"]

[Event "Titled Tuesday Blitz November 30 2021"]
[White "Grigorjev, Iljya"]
[Black "Kucuksari, Kaan"]
[WhiteFideId "24159565"]
[BlackFideId "6380166"]
[WhiteElo "2124"]
[BlackElo "2301"]
[Result "0-1"]
[Round "06"]
[TimeControl "180+1"]
[Date "2021.11.30"]
[WhiteClock "0:00:03"]
[BlackClock "0:00:08"]

1. Nf3 {[%clk 0:03:00]}  Nf6 {[%clk 0:02:58]} 2. g3 {[%clk 0:03:01]}  b6 {[%clk 0:02:57]} 3. Bg2 {[%clk 0:03:01]}  Bb7 {[%clk 0:02:58]} 4. O-O {[%clk 0:03:02]}  e6 {[%clk 0:02:59]} 5. b3 {[%clk 0:03:02]}  Be7 {[%clk 0:02:59]} 6. Bb2 {[%clk 0:03:02]}  O-O {[%clk 0:03:00]} 7. c4 {[%clk 0:03:03]}  c5 {[%clk 0:03:00]} 8. Nc3 {[%clk 0:03:02]}  d5 {[%clk 0:02:59]} 9. cxd5 {[%clk 0:03:01]}  Nxd5 {[%clk 0:03:00]} 10. d4 {[%clk 0:02:53]}  Nxc3 {[%clk 0:02:59]} 11. Bxc3 {[%clk 0:02:53]}  Bf6 {[%clk 0:02:59]} 12. Rc1 {[%clk 0:02:52]}  Nd7 {[%clk 0:02:48]} 13. Qd2 {[%clk 0:02:32]}  Qe7 {[%clk 0:02:44]} 14. Rfd1 {[%clk 0:02:30]}  Rad8 {[%clk 0:02:43]} 15. Qe3 {[%clk 0:02:29]}  Bxf3 {[%clk 0:02:38]} 16. Qxf3 {[%clk 0:02:21]}  cxd4 {[%clk 0:02:39]} 17. Bxd4 {[%clk 0:02:21]}  Bxd4 {[%clk 0:02:40]} 18. Rxd4 {[%clk 0:02:21]}  Nf6 {[%clk 0:02:34]} 19. Rdc4 {[%clk 0:02:12]}  h6 {[%clk 0:02:26]} 20. Rc7 {[%clk 0:02:01]}  Rd7 {[%clk 0:02:26]} 21. Qc3 {[%clk 0:01:59]}  Rfd8 {[%clk 0:02:22]} 22. Rxd7 {[%clk 0:01:47]}  Rxd7 {[%clk 0:02:23]} 23. h3 {[%clk 0:01:44]}  Nd5 {[%clk 0:02:09]} 24. Qc8+ {[%clk 0:01:40]}  Rd8 {[%clk 0:02:09]} 25. Qc4 {[%clk 0:01:35]}  Qa3 {[%clk 0:01:48]} 26. Rd1 {[%clk 0:01:23]}  Qxa2 {[%clk 0:01:46]} 27. e4 {[%clk 0:01:17]}  b5 {[%clk 0:01:41]} 28. Qd3 {[%clk 0:01:07]}  a5 {[%clk 0:01:21]} 29. exd5 {[%clk 0:01:07]}  a4 {[%clk 0:01:19]} 30. bxa4 {[%clk 0:01:06]}  bxa4 {[%clk 0:01:20]} 31. d6 {[%clk 0:01:03]}  a3 {[%clk 0:01:19]} 32. d7 {[%clk 0:01:01]}  Qb2 {[%clk 0:01:17]} 33. Qd6 {[%clk 0:00:51]}  a2 {[%clk 0:01:00]} 34. Qc7 {[%clk 0:00:51]}  Qf6 {[%clk 0:00:49]} 35. Kh2 {[%clk 0:00:44]}  Kh7 {[%clk 0:00:45]} 36. Qa7 {[%clk 0:00:39]}  Qb2 {[%clk 0:00:34]} 37. Bc6 {[%clk 0:00:27]}  Qc2 {[%clk 0:00:30]} 38. Rd6 {[%clk 0:00:17]}  Qb1 {[%clk 0:00:11]} 39. Qd4 {[%clk 0:00:09]}  f5 {[%clk 0:00:08]} 40. Rxe6 {[%clk 0:00:03]}  a1=Q {[%clk 0:00:09]} 41. Qd6 {[%clk 0:00:03]}  Qg1# {[%clk 0:00:08]} 0-1


[Site "https://www.chess.com"]

[Event "Titled Tuesday Blitz November 30 2021"]
[White "Gritsenko, Nikolai"]
[Black "Babazada, Khazar"]
[WhiteFideId "14112493"]
[BlackFideId "13413554"]
[WhiteElo "2389"]
[BlackElo "2302"]
[Result "0-1"]
[Round "06"]
[TimeControl "180+1"]
[Date "2021.11.30"]
[WhiteClock "0:00:10"]
[BlackClock "0:00:41"]

1. d4 {[%clk 0:03:00]}  Nf6 {[%clk 0:02:57]} 2. Bg5 {[%clk 0:03:00]}  Ne4 {[%clk 0:02:57]} 3. h4 {[%clk 0:02:58]}  d5 {[%clk 0:02:54]} 4. Nd2 {[%clk 0:02:58]}  Nd6 {[%clk 0:02:54]} 5. Bf4 {[%clk 0:02:54]}  Bf5 {[%clk 0:02:52]} 6. e3 {[%clk 0:02:52]}  h5 {[%clk 0:02:49]} 7. Bd3 {[%clk 0:02:49]}  Bxd3 {[%clk 0:02:47]} 8. cxd3 {[%clk 0:02:49]}  e6 {[%clk 0:02:48]} 9. Ngf3 {[%clk 0:02:48]}  Be7 {[%clk 0:02:45]} 10. Qb3 {[%clk 0:02:45]}  Nc6 {[%clk 0:02:27]} 11. Rc1 {[%clk 0:02:42]}  O-O {[%clk 0:02:14]} 12. a3 {[%clk 0:02:31]}  Rb8 {[%clk 0:02:12]} 13. Bxd6 {[%clk 0:02:25]}  cxd6 {[%clk 0:02:01]} 14. g3 {[%clk 0:02:21]}  g6 {[%clk 0:01:52]} 15. Ke2 {[%clk 0:02:14]}  Bf6 {[%clk 0:01:47]} 16. Rc2 {[%clk 0:02:07]}  Re8 {[%clk 0:01:46]} 17. Rhc1 {[%clk 0:02:04]}  Qd7 {[%clk 0:01:41]} 18. Kf1 {[%clk 0:01:50]}  Bg7 {[%clk 0:01:37]} 19. Kg2 {[%clk 0:01:38]}  Rec8 {[%clk 0:01:33]} 20. Rc3 {[%clk 0:01:31]}  Rc7 {[%clk 0:01:30]} 21. Qa4 {[%clk 0:01:26]}  a6 {[%clk 0:01:23]} 22. b4 {[%clk 0:01:21]}  Rbc8 {[%clk 0:01:21]} 23. b5 {[%clk 0:01:16]}  axb5 {[%clk 0:01:18]} 24. Qxb5 {[%clk 0:01:15]}  Ra8 {[%clk 0:01:16]} 25. Qb2 {[%clk 0:01:08]}  Bf6 {[%clk 0:01:16]} 26. Rb3 {[%clk 0:01:08]}  Bd8 {[%clk 0:01:13]} 27. Rb5 {[%clk 0:01:00]}  Rac8 {[%clk 0:01:10]} 28. e4 {[%clk 0:00:57]}  Ne7 {[%clk 0:01:07]} 29. Rxc7 {[%clk 0:00:56]}  Rxc7 {[%clk 0:01:06]} 30. e5 {[%clk 0:00:52]}  Nf5 {[%clk 0:01:04]} 31. a4 {[%clk 0:00:41]}  dxe5 {[%clk 0:01:01]} 32. Nxe5 {[%clk 0:00:32]}  Qc8 {[%clk 0:01:01]} 33. Ndf3 {[%clk 0:00:28]}  Rc2 {[%clk 0:00:58]} 34. Qb3 {[%clk 0:00:23]}  b6 {[%clk 0:00:52]} 35. a5 {[%clk 0:00:23]}  Ne3+ {[%clk 0:00:46]} 36. Kg1 {[%clk 0:00:19]}  Rc1+ {[%clk 0:00:46]} 37. Kh2 {[%clk 0:00:19]}  Rf1 {[%clk 0:00:41]} 38. fxe3 {[%clk 0:00:17]}  Qc1 {[%clk 0:00:41]} 39. Kg2 {[%clk 0:00:10]}  Rh1 {[%clk 0:00:41]} 0-1


[Site "https://www.chess.com"]